Cogmind - Beta 16 @@@ ROGUE MODE // 2025.12.07 @ 19:10:01 Player: ktur Result: Destroyed by LP-E2T(j) with Overtuned Pulse Rifle Performance ------------- Evolutions (0) 0 Regions Visited (3) 600 Robots Destroyed (17) 85 Value Destroyed (443) 443 Prototype IDs (6) 120 Alien Tech Used (0) 0 Bonus (1358) 1358 TOTAL SCORE: 2606 Bonus ------- Follower Combat Kills 690 Registered with UFD 300 Met Optimus in HQ 500 Friendly Fire -132 Cogmind --------- Core Integrity 0/250 Matter 300/300 Energy 144/250 System Corruption 3% Temperature Cool (12) Movement Rolling (115) Ox1 Location -9/Scraptown Parts ------- > --- POWER (1) -------- Ion Engine > --- PROPULSION (2) --- Compact Wheel Compact Wheel > --- UTILITY (2) ------ Large Storage Unit Makeshift Light Armor Plating > --- WEAPON (2) ------- Overtuned Coil Gun Voltaic Drivehammer > --- INVENTORY (15) --- Overtuned Huge Scrapsphere Scrap Suit High-capacity Matter Pod (200) Seismic Detector Hacking Suite Power Bank CPS Tube (2) CPS Tube (2) Mace Vortex Trap Vortex Trap Vortex Trap Peak State ------------ > --- POWER ------------ Ion Engine > --- PROPULSION ------- Compact Wheel Compact Wheel > --- UTILITY ---------- Large Storage Unit Improved Salvage Targeting Computer > --- WEAPON ----------- Overtuned Coil Gun Voltaic Drivehammer > --- INVENTORY -------- Overtuned Huge Scrapsphere Scrap Suit High-capacity Matter Pod Seismic Detector Hacking Suite Power Bank CPS Tube CPS Tube Mace Vortex Trap Vortex Trap Vortex Trap [Rating: 28] Favorites ----------- Power Ion Engine Engine Ion Engine Power Core Light Fission Core Propulsion Compact Wheel Treads Light Treads Wheel Compact Wheel Utility Seismic Detector Device Seismic Detector Storage Large Storage Unit Processor Improved Salvage Targeting Computer Protection Makeshift Light Armor Plating Weapon Subdweller Machine Gun Energy Gun Subdweller Laser Energy Cannon Subdweller Beam Cannon Ballistic Gun Subdweller Machine Gun Special Weapon Voltaic Drivehammer Impact Weapon Mace Build | -11 -10 -10 -9 ------- Run | Yrd Mat Sub Scr Slots Evolved . | . . . . Power . | . . . . Propulsion . | . . . . Utility . | . . . . Weapon . | . . . . Parts Attached 32 | 7 1 10 14 Power 6 | 1 1 1 3 Engine 5 | 1 1 1 2 Core 1 | . . . 1 Reactor . | . . . . Propulsion 5 | 2 . 2 1 Treads 2 | 2 . . . Leg . | . . . . Wheel 3 | . . 2 1 Hover . | . . . . Flight . | . . . . Utility 7 | 2 . . 5 Device 2 | 1 . . 1 Storage 3 | 1 . . 2 Processor 1 | . . . 1 Hackware . | . . . . Protection 1 | . . . 1 Artifact . | . . . . Weapon 14 | 2 . 7 5 Energy Gun 2 | . . 2 . Energy Cannon 1 | . . 1 . Ballistic Gun 7 | 2 . 3 2 Ballistic Cannon . | . . . . Launcher . | . . . . Special Weapon 3 | . . 1 2 Impact Weapon 1 | . . . 1 Slashing Weapon . | . . . . Piercing Weapon . | . . . . Special Melee Weapon . | . . . . Unidentified Prototypes . | . . . . Parts Lost 6 | . 1 5 . Power 2 | . 1 1 . Propulsion 2 | . . 2 . Utility . | . . . . Weapon 2 | . . 2 . Highest Loss Streak 5 | . 1 5 . To Critical Strikes . | . . . . Average Backups 8 | 3 5 7 9 Power . | . . . . Propulsion . | 1 2 1 . Utility 3 | . 1 2 4 Weapon 1 | 1 2 3 1 Tool/Special . | . . . . Unused Backups 31 | . . 2 29 Power 1 | . . . 1 Propulsion 6 | . . 1 5 Utility 15 | . . . 15 Weapon 4 | . . 1 3 Tool/Special 5 | . . . 5 Average Slot Usage (%) 96 | . 99 97 95 Engine 11 | . 13 12 11 Core 2 | . . . 2 Treads 4 | . 28 22 . Wheel 22 | . . 4 28 Device 11 | . 14 14 10 Storage 13 | . 14 14 12 Processor 1 | . . . 2 Energy Gun 2 | . . 14 . Ballistic Gun 20 | . 28 10 21 Impact Weapon 2 | . . . 2 Peak Build Rating 28 | 7 8 13 28 Average Rating 14 | 5 7 9 16 On Entrance 7 | . 7 8 13 Avg Prop Armor Cover (%) 5 | . . 5 5 Naked Turns . | . . . . Heaviest Build 47 | 12 14 23 47 Greatest Support 40 | 40 40 40 32 Greatest Overweight (x) 2 | . . 1 2 Average Overweight (x) . | . . . . Largest Inventory Capacity 15 | 8 8 8 15 Average Capacity 11 | 7 8 8 13 Most Carried 15 | 6 6 8 15 Average Carried 10 | 4 5 7 11 Final Capacity 15 | 8 8 8 15 Final Carried 14 | 6 6 8 14 Class Distribution -------------------- 69% | Mutant 18% | Scavenger-Mutant 11% | Derelict-Mutant Dominant Class ---------------- Mutant | -10/Materials Mutant | -10/Subcaves Mutant | -9/Scraptown Resources | -11 -10 -10 -9 ----------- Run | Yrd Mat Sub Scr Matter Collected 1419 | 302 32 177 908 Remotely . | . . . . Salvage Created 595 | 97 146 265 87 Parts 52 | 8 17 20 7 Haulers Intercepted . | . . . . Recyclers Shooed . | . . . . Parts Field Recycled . | . . . . Retrieved Matter . | . . . . Parts Self-Destructed 14 | . . 12 2 Prevented . | . . . . Parts Restored . | . . . . Kills | -11 -10 -10 -9 ------- Run | Yrd Mat Sub Scr Combat Hostiles Destroyed 11 | . 4 5 2 Guns 9 | . 4 3 2 Cannons 2 | . . 2 . Classes Destroyed 8 | 1 4 1 2 Builder 1 | . 1 . . Tunneler 4 | 4 . . . Operator 1 | . 1 . . Swarmer 1 | . 1 . . Grunt 3 | . 3 . . Subdweller 5 | . . 5 . Federalist 1 | . . . 1 Guru 1 | . . . 1 Best Kill Streak 3 | 2 3 2 1 Combat Bots Only 2 | . 2 2 1 Max Kills in Single Turn 1 | 1 1 1 1 Gunslinging . | . . . . Exploded . | . . . . Melee . | . . . . Uniques/NPCs Destroyed . | . . . . Combat | -11 -10 -10 -9 -------- Run | Yrd Mat Sub Scr Hostile Shots Fired 77 | . 14 45 18 Missed 25 | . 5 14 6 Hits 52 | . 9 31 12 Projectile 52 | . 9 31 12 Critical Strikes 2 | . 1 . 1 Damage Taken 1085 | . 128 736 221 Core 258 | . 21 172 65 Absorbed by Shields . | . . . . Core Remaining (%) 100 | 100 . . . Volleys Fired 76 | 8 13 38 17 Largest 2 | 2 2 2 2 Hottest 110 | 40 40 110 55 Shots Fired 117 | 16 26 52 23 Gun 98 | 16 26 35 21 Cannon 16 | . . 16 . Launcher . | . . . . Special 3 | . . 1 2 Kinetic 94 | 16 26 31 21 Thermal 21 | . . 21 . Explosive . | . . . . Electromagnetic 1 | . . . 1 Robot Hit Streak 12 | 8 6 12 5 Robot Miss Streak 3 | 1 3 3 3 Penetration Max 1 | . . . 1 Secondary Targets 3 | . 2 . 1 Max Gunslinging Chain 1 | . 1 . 1 Shots Hit Robots 75 | 11 14 36 14 Core Hits 25 | 5 6 10 4 Critical Kills . | . . . . Critical Parts Destroyed . | . . . . Critical Strikes 1 | . . 1 . Destroy 1 | . . 1 . Melee Attacks 5 | . . . 5 Impact 5 | . . . 5 Slashing . | . . . . Piercing . | . . . . Sneak Attacks . | . . . . Combat Hostiles . | . . . . Follow-up Attacks . | . . . . Damage Inflicted 1338 | 114 169 706 349 Guns 1010 | 114 165 382 349 Cannons 324 | . . 324 . Explosions . | . . . . Melee . | . . . . Ramming 4 | . 4 . . Kinetic 952 | 114 165 324 349 Thermal 382 | . . 382 . Explosive . | . . . . Electromagnetic . | . . . . Impact . | . . . . Slashing . | . . . . Piercing . | . . . . Highest Corruption 3 | . . . 3 Average Corruption 3 | . . . 3 Corruption Purged . | . . . . Corruption Blocked . | . . . . Overload Shots . | . . . . Overflow Damage . | . . . . Projectiles . | . . . . Explosions . | . . . . Melee . | . . . . Knockbacks . | . . . . Impact . | . . . . Kinetic . | . . . . Secondary . | . . . . Self-Inflicted Damage . | . . . . Shots . | . . . . Rammed 1 | . 1 . . Targets Rammed 2 | . 2 . . Kicked . | . . . . Crushed 1 | . 1 . . Highest Temperature 48 | . 27 16 48 Average Temperature 15 | . 12 6 20 Received Heat Transfer 385 | . 84 192 109 Siege Activations . | . . . . Martial Activations . | . . . . Shielding Activations . | . . . . Robots Disrupted . | . . . . Combat Hostiles . | . . . . Robots Corrupted . | . . . . Combat Hostiles . | . . . . Parts Fried . | . . . . Impact Corruptions . | . . . . Robots Melted . | . . . . Combat Hostiles . | . . . . Parts Melted 1 | . . 1 . Heat Transferred 544 | . . 544 . Parts Sabotaged . | . . . . Parts Stolen . | . . . . Parts Stripped . | . . . . Power Chain Reactions . | . . . . Alert | -11 -10 -10 -9 ------- Run | Yrd Mat Sub Scr Maximum Alert Level . | . . . . Low Security (%) 100 | 100 100 . . Level 1 . | . . . . Level 2 . | . . . . Level 3 . | . . . . Level 4 . | . . . . Level 5 . | . . . . High Security . | . . . . Max Security . | . . . . Peak Influence 55 | 5 55 . . Initial . | . . . . Average 13 | . 29 . . Influence Increases 135 | 20 115 . . Destroy 0b10 Robot/C 80 | . 80 . . Destroy 0b10 Robot/NC 30 | 20 10 . . Destroy Leader 10 | . 10 . . Disable Machine 15 | . 15 . . Influence Decreases 135 | 20 100 15 . Entered New Map 8 | . . 8 . Time Decay 117 | 20 90 7 . Lost Part 10 | . 10 . . Squads Dispatched 3 | . 3 . . Investigation 2 | . 2 . . Extermination . | . . . . Reinforcement 1 | . 1 . . Assault . | . . . . Garrison . | . . . . Intercept . | . . . . Searches Triggered . | . . . . Construction Impeded . | . . . . Haulers Reinforced . | . . . . Active Scanning Responses . | . . . . Cargo Convoy Interrupts . | . . . . Stealth | -11 -10 -10 -9 --------- Run | Yrd Mat Sub Scr Distress Signals 1 | . 1 . . Communications Jammed . | . . . . Distress Signals . | . . . . Times Spotted 47 | . 14 7 26 Peak Tracking Total 4 | . 4 2 3 Tactical Retreats . | . . . . Traps | -11 -10 -10 -9 ------- Run | Yrd Mat Sub Scr Traps Triggered 1 | . 1 . . Indirectly . | . . . . Trap Hack Attempts . | . . . . Triggered . | . . . . Disarmed . | . . . . Reprogrammed . | . . . . Reused . | . . . . Traps Extracted . | . . . . Installed . | . . . . Triggered . | . . . . Most Traps Carried 3 | . . . 3 Machines | -11 -10 -10 -9 ---------- Run | Yrd Mat Sub Scr Machines Disabled 8 | . 1 . 7 Max in Single Turn 3 | . 1 . 3 Machines Repaired . | . . . . Machines Dismantled . | . . . . Machines Sabotaged . | . . . . Overloaded Fab Kills . | . . . . Hacking | -11 -10 -10 -9 --------- Run | Yrd Mat Sub Scr Machines Accessed 3 | . . . 3 Terminals . | . . . . Fabricators . | . . . . Repair Stations . | . . . . Recycling Units . | . . . . Scanalyzers . | . . . . Garrison Access . | . . . . Total Hacks 6 | . . . 6 Successful 6 | . . . 6 Failed . | . . . . Catastrophic . | . . . . Database Lockouts . | . . . . Manual . | . . . . Terminals . | . . . . Fabricators . | . . . . Repair Stations . | . . . . Recycling Units . | . . . . Scanalyzers . | . . . . Garrison Access . | . . . . Terminal Hacks 6 | . . . 6 Record 5 | . . . 5 Proto ID Catalog 1 | . . . 1 Fabricator Hacks . | . . . . Repair Station Hacks . | . . . . Recycling Unit Hacks . | . . . . Scanalyzer . | . . . . Garrison Access Hacks . | . . . . Unauthorized Hacks . | . . . . Terminals . | . . . . Fabricators . | . . . . Repair Stations . | . . . . Recycling Units . | . . . . Scanalyzers . | . . . . Garrison Access . | . . . . Data Cores Recovered . | . . . . Used . | . . . . Hacking Detections . | . . . . Full Trace Events . | . . . . Feedback Events . | . . . . Feedback Blocked . | . . . . Robot Schematics Acquired . | . . . . Robots Built . | . . . . Authchips . | . . . . Time . | . . . . Total Robot Build Rating . | . . . . Part Schematics Acquired . | . . . . Parts Built . | . . . . Authchips . | . . . . Time . | . . . . Total Part Build Rating . | . . . . Part Studies Acquired . | . . . . Parts Repaired . | . . . . Time . | . . . . Parts Recycled . | . . . . Recycled Matter . | . . . . Retrieved Matter . | . . . . Retrieved Components . | . . . . Parts Scanalyzed . | . . . . Part Schematics Acquired . | . . . . Parts Damaged . | . . . . Bothacking | -11 -10 -10 -9 ------------ Run | Yrd Mat Sub Scr Used RIF Installer . | . . . . Robots Hacked . | . . . . Non-combat . | . . . . Combat . | . . . . Robot Hacks Applied . | . . . . Relay Couplers Released . | . . . . Fabnet Peak Effective % . | . . . . Robots Rewired . | . . . . Allies Hacked . | . . . . Hacks Repelled . | . . . . Allies | -11 -10 -10 -9 -------- Run | Yrd Mat Sub Scr Total Allies 1 | . . . 1 Largest Group 1 | . . . 1 Highest-Rated Group 83 | . . . 83 Highest-Rated Ally 83 | . . . 83 Total Orders 5 | . . . 5 STAY 2 | . . . 2 FOLLOW 3 | . . . 3 Ally Attacks 58 | . . . 58 Total Damage 1798 | . . . 1798 Kills 22 | . . . 22 Allies Corrupted . | . . . . Allies Melted 11 | . . . 11 Intel | -11 -10 -10 -9 ------- Run | Yrd Mat Sub Scr Active Infowar (turns) 4648 | 126 211 1046 3265 Seismic 4648 | 126 211 1046 3265 Robot Analysis Total . | . . . . Derelict Logs Recovered 5 | . . 1 4 Drone Launches . | . . . . Drone Recoveries . | . . . . Exploration | -11 -10 -10 -9 ------------- Run | Yrd Mat Sub Scr Turns Passed 6320 | 266 211 1046 4797 Spaces Moved 4595 | 142 104 599 3750 Core 4 | 4 . . . Treads 708 | 138 104 466 . Legs . | . . . . Wheels 3883 | . . 133 3750 Hover . | . . . . Flight . | . . . . Fastest Speed 50 | 50 160 100 100 Average Speed 118 | 156 160 149 110 Slowest Speed 160 | 160 160 160 130 Overloaded Moves . | . . . . Propulsion Burnouts . | . . . . Robots Hopped . | . . . . Potential Cave-ins . | . . . . Cave-ins Triggered . | . . . . Exploration Rate (%) 38 | 7 35 38 74 Regions Visited 3 Branch Regions 2 Pre-discovered Areas 2 | . . . 2 Known Exits Taken . | . . . . Unknown Exits Taken 3 | 1 1 1 . Scrap Searched 9 | . . 4 5 Spaces Dug 12 | . . . 12 Terrain Destroyed 13 | . . . 13 Melee . | . . . . Projectile 1 | . . . 1 AOE 12 | . . . 12 Terrain Rammed . | . . . . Walls Destroyed . | . . . . Machines Disabled . | . . . . Actions | -11 -10 -10 -9 --------- Run | Yrd Mat Sub Scr Total 5374 | 168 124 694 4388 Wait 543 | 4 4 35 500 Move 4592 | 141 103 598 3750 Hop . | . . . . Pick Up 63 | 8 1 6 48 Fast Attach 20 | 5 . 4 11 Attach 11 | 2 1 4 4 Detach 4 | . . 2 2 Swap 8 | . . 3 5 Drop 49 | . . 4 45 Fire 76 | 8 13 38 17 Melee 5 | . . . 5 Ram . | . . . . Kick . | . . . . Crush 2 | . 2 . . Escape Stasis . | . . . . Rewire 1 | . . . 1 Trap . | . . . . Miscellaneous . | . . . . Route ------- -11/Scrapyard -10/Materials (discovered 4 exits: [*Mat x2] / [*Min] / [*Sub]) -10/Subcaves (discovered 3 exits: [*Mat] / *Scr x2) -9/Scraptown (discovered 2 exits: Fac x2) History --------- Turn | Location | Event 5 | -11/Scrapyard | Discovered new exit (range 15) 267 | -11/Scrapyard | Entered Materials 268 | -10/Materials | Met a group of wandering Federalists 306 | -10/Materials | Build established: Mutant 354 | -10/Materials | Discovered new exit (range 10) 439 | -10/Materials | Discovered new exit (range 4) 459 | -10/Materials | Discovered new exit (range 12) 475 | -10/Materials | Discovered new exit (range 3) 478 | -10/Materials | Entered Subcaves 478 | -10/Subcaves | Accompanied by 1 ally 479 | -10/Subcaves | Continued accompanying wandering Federalists (3) 479 | -10/Subcaves | Approached by a straggling Scientist 491 | -10/Subcaves | Learned Materials stockpile data 609 | -10/Subcaves | Scientist uncovered a shortcut to Scraptown 720 | -10/Subcaves | Wandering Federalist uncovered a shortcut to Scraptown 980 | -10/Subcaves | Discovered new exit (range 5) 1283 | -10/Subcaves | A Subdweller sparked back to life 1283 | -10/Subcaves | A Subdweller sparked back to life 1315 | -10/Subcaves | Core integrity fell below 50% 1368 | -10/Subcaves | Found Prototype Device 1371 | -10/Subcaves | Lost 5 parts (1p2n2w) 1524 | -10/Subcaves | Entered Scraptown 1600 | -9/Scraptown | Visited Cave Peace 1635 | -9/Scraptown | Build established: Scavenger-Mutant 1644 | -9/Scraptown | Scanned Subdweller tech in exchange for log data 1646 | -9/Scraptown | Learned location of Warlord (-4) 1648 | -9/Scraptown | Learned Research stockpile data 1649 | -9/Scraptown | Learned Research emergency access door positions 1650 | -9/Scraptown | Learned Factory terminal intel 1687 | -9/Scraptown | Visited Comm Corps 1703 | -9/Scraptown | Visited Cyclists 1761 | -9/Scraptown | Visited SPCMW 1777 | -9/Scraptown | Visited Assassins FH 1794 | -9/Scraptown | Visited Spacefarers 1838 | -9/Scraptown | Visited UFD Registry 1838 | -9/Scraptown | Registered with UFD as "Hellmaster" 1875 | -9/Scraptown | Visited Abandonware Association 1887 | -9/Scraptown | Learned abandonware demo "MELTYB.EXE" 1914 | -9/Scraptown | Visited Scrapoid Research Area 1972 | -9/Scraptown | Visited Modified Component R&D 2017 | -9/Scraptown | Visited Scrap Suit Storage 2031 | -9/Scraptown | Visited Research Penetration Think Tank 2057 | -9/Scraptown | Visited Science Guys 2091 | -9/Scraptown | Visited DA-N13 Charitable Foundation 2096 | -9/Scraptown | Found DCF Scrap (30 items) 2128 | -9/Scraptown | Visited Scrapoid Pod Storage 2146 | -9/Scraptown | Visited Botcube Research 2210 | -9/Scraptown | Delivered Scrap Shield to a Scientist 2374 | -9/Scraptown | Found Lrg. Botcube 2401 | -9/Scraptown | Found Scrapoid Pod 2808 | -9/Scraptown | Build established: Mutant 4040 | -9/Scraptown | Found Scrap Suit 4104 | -9/Scraptown | Lrg. Botcube activated 4136 | -9/Scraptown | Lrg. Botcube completed mutation into treaded form, armed with 2 cannons. 4141 | -9/Scraptown | Attached CPS modules to Large Mutated Botcube. 5104 | -9/Scraptown | Found Scrap Suit 5491 | -9/Scraptown | Build established: Derelict-Mutant 5503 | -9/Scraptown | Met Optimus 5503 | -9/Scraptown | Accepted into 0bPrime 5903 | -9/Scraptown | Civil war broke out across Scraptown 5912 | -9/Scraptown | Found Voltaic Drivehammer 5967 | -9/Scraptown | Lost 4 allies 5975 | -9/Scraptown | Core integrity fell below 20% 5978 | -9/Scraptown | Identified exit to Factory 6224 | -9/Scraptown | Build established: Mutant 6321 | -9/Scraptown | Destroyed by LP-E2T(j) with Overtuned Pulse Rifle Last Messages --------------- 06247_ Slug penetrates JM-K8I(b). 06248_ Ovr. Coil Gun suddenly begins malfunctioning. 06249_ JM-K8I(b) destroyed. 06252_ Large Mutated Botcube suffers critical hit (Burn). 06253_ Large Mutated Botcube cannibalizes Imp. Heat Sink to repair Disposable Heat Sink. 06262_ Large Mutated Botcube collects matter. 06264_ Large Mutated Botcube cannibalizes Ovr. Pulse Rifle to repair Salvaging Laser. 06268_ Large Mutated Botcube cannibalizes Lgt. Nuclear Core to repair Lgt. Fission Core. 06269_ Ovr. Coil Gun recovered from malfunction. 06271_ PE-3PX(j) destroyed. 06275_ Large Mutated Botcube cannibalizes Bolt Gun to repair Lgt. Assault Rifle. 06277_ 6F-2YG(j) cannibalizes Ovr. Titanium Leg to repair Ovr. Titanium Leg. 06292_ Acquired 4 matter. 06306_ Supplies damaged. 06318_ A0-3PZ(g) destroyed. Map ----- +----------------------------------------------------+ | #???????#" | | = [%#???????#" | | ### [!%[ *#???#####" =%! | | ??# =![%! #???#"""" % %""""""""""""""""""""" | | ??# [!%! #???#""""= %% """""""""""""""""""""" | | ??# *! #???#""""%[= != ###### ############# | | ??# [ #???#""""[[%*%= "# #??????? | | ??# #???#"""" ! "# X"??????? | | ??# * ###?#"""" "# "" "" ##?????? | | ??# !=%! ""#"#""" "# "" "" X"#?????? | | ??# =%[![ """"#"""" = ""# " ######## | | ??# *!=== ""####### [% = ! "" | | ??# [%% !!###????? *[ %==%= "" | | ?## ! ! #########=!=![3!%# " " ######## | | ?#" =* !=! = = %%[!# "" "" ""#?????? | | ??# =%! !=**=% !! [==%==# "" "" ##?????? | | ??# =*=%!=[ % %[!!=!!"# X"#?????? | | ??# = ==! =[ *%!!%=; ##?????? | | ###= ![ ! =[!*!"###### ############# | | =%! ! [!== %= =!!*""""""""""""""""""""""" | | ! !%!% ! ! = = != !=="""""""""""""""""""""" | | !* = * %=*=[%=*= | | ![ ! ! !M !=%==[=%[! x | | !%* = !%![%!!![ % j / | | =! #""""#[=%!===! * =[ | | =% #????# *@*! % % j =[ | | ! #????#""""" " " " """ """""""" | | ##### ### ####????####### ########### ########"! | | ???"""""# #???????# " #?#" "#?#*[= | | ? # #???????# " """#?#" "##" == | | "# #???????# " ""#?#" "# #/[[ | | """ "# #???????# " """#?#" ""## = | | ??" # #???????# " """"#?#"""""""[#?#!*% | | ?? """ # #???????# "###"#######?#######"##?#=!! | | ?? "??? # #???????###???????????????????""??#### | | ? ???? # #????????????????????????????????????? | | ?##????##= #????????????????????????????????????? | | ????????#!! #????????????????????????????????????? | | ????????# % #????????????????????????????????????? | | ???###### #????????????????????????????????????? | | ?"""""""" #?????????????????????????###??####### | | """ """"" #????????????????????#?"??#"""##"""##" | | "" " "" #???????????????# ""## ""##" "##"""##" | | #?????????????? | | "" "" " #?????????????? | | """"""""" #?????????????? ! | | ???"""""" #??????????????????"##"""##"" ##" "## | | ???###### #?????????????????????????#"""##"""##" | | ######### #??????????????????????????########### | | """"""""# #????????????????????????????????????? | +----------------------------------------------------+ Best States ------------- Heat Dissipation 25 Energy Generation 18 Energy Capacity 265 Matter Stores 300 Matter Capacity 300 Sight Range 16 Terrain Scan Density 10 Armor Coverage 100 Evasion (%) 40 Recoil Reduction 2 Salvage Targeting 2 Item Schematics ----------------- None Robot Schematics ------------------ None Fabricated ------------ Nothing Repaired ---------- Nothing Studied --------- None Alien Tech Used ----------------- None Achievements -------------- Thor Challenges ------------ None Game ------ Seed ArchitectWeaponShotgun Manual? 0 Play Time 00:41:26 Cumulative 846.4 hours Start 2025.12.07 @ 18:29:41 End 2025.12.07 @ 19:10:01 Sessions 1 Manual Loads 0 Difficulty Rogue Special Mode None Game No. 851 Rogue 851 Adventurer 0 Explorer 0 Win Type - Total 40 Types 15/4/11/2/0/0/5/2/1/0 Lore% 96 Gallery% 86 Achievement% 66 Wizard Run 0 Options --------- Layout 0 ASCII 0 Keyboard 0 Movement Numpad Keybinds 0 Fullscreen 1 Font 18/Smallcaps Map View 76x50 Zoom Use 0% Tactical HUD 1 Map Filters NONE Filters NONE Steam 1 RUN: 6db5653e-1bd6-44f3-8376-c4386a6c8152